Workbook

Sheet Лист1
I1: К постановлению Администрации Североуральского городского округа от .06.2014г. №
A2: Приложение № 2 к муниципальной программе Североуральского городского округа «Развитие жилищно-коммунального хозяйства и транспортного обслуживания населения, повышение энергетической эффективности и охрана окружающей среды в Североуральском городском округе» на 2014-2020 годы
A3: План мероприятий
A4: по выполнению муниципальной программы Североуральского городского округа
A5: «Развитие жилищно-коммунального хозяйства и транспортного обслуживания населения,
A6: повышение энергетической эффективности и охрана окружающей среды в Североуральском городском округе» на 2014-2020 годы
A8: № строки | B8: Наименование мероприятия/ Источники расходов на финансирование | C8: Объем расходов на выполнение мероприятия за счет всех источников ресурсного обеспечения, тыс. руб. | K8: Номер строки целевых показателей, на достижение которых направлены мероприятия
C9: Всего | D9: первый год | E9: второй год | F9: третий год | G9: четвертый год | H9: пятый год | I9: шестой год | J9: седьмой год
B10: ВСЕГО по муниципальной программе, в том числе: | C10: =SUM(C11:C13) -> 618528.45 | D10: =SUM(D11:D13) -> 143889.5 | E10: =SUM(E11:E13) -> 86985.45 | F10: 56041.5 | G10: 82903 | H10: 82903 | I10: 82903 | J10: 82903
B11: местный бюджет | C11: =SUM(D11:J11) -> 573424.75 | D11: =SUM(D15+D19) -> 99187.8 | E11: =SUM(E15+E19) -> 86918.45 | F11: 55974.5 | G11: 82836 | H11: 82836 | I11: 82836 | J11: 82836
B12: областной бюджет | C12: =SUM(D12:J12) -> 19430.4 | D12: =SUM(D16+D20) -> 19028.4 | E12: =SUM(E16+E20) -> 67 | F12: 67 | G12: 67 | H12: 67 | I12: 67 | J12: 67
B13: федеральный бюджет | C13: =SUM(D13:J13) -> 25673.3 | D13: =SUM(D21+D17) -> 25673.3 | E13: =SUM(E21+E17) -> 0 | F13: 0 | G13: 0 | H13: 0 | I13: 0 | J13: 0
B14: Капитальные вложения | C14: =SUM(C15:C17) -> 284613.75 | D14: =SUM(D15:D17) -> 95089.9 | E14: =SUM(E15:E17) -> 39950.35 | F14: 8425.5 | G14: 35287 | H14: 35287 | I14: 35287 | J14: 35287
B15: местный бюджет | C15: =SUM(D15:J15) -> 240729.85 | D15: =D29+D82+D126+D149+D175+D209+D245+D264 -> 51206 | E15: =E29+E82+E126+E149+E175+E209+E245+E264 -> 39950.35 | F15: =F29+F82+F126+F149+F175+F209+F245+F264 -> 8425.5 | G15: 35287 | H15: 35287 | I15: 35287 | J15: 35287
B16: областной бюджет | C16: =SUM(D16:J16) -> 18210.6 | D16: =D83+D150+D30 -> 18210.6 | E16: =E83+E150 -> 0 | F16: 0 | G16: 0 | H16: 0 | I16: 0 | J16: 0
B17: федеральный бюджет | C17: =SUM(D17:J17) -> 25673.3 | D17: =D84+D151 -> 25673.3 | E17: 0 | F17: 0 | G17: 0 | H17: 0 | I17: 0 | J17: 0
B18: Прочие нужды | C18: =SUM(C19:C20) -> 333914.7 | D18: =SUM(D19:D20) -> 48799.6 | E18: =SUM(E19:E20) -> 47035.1 | F18: 47616 | G18: 47616 | H18: 47616 | I18: 47616 | J18: 47616
B19: местный бюджет | C19: =SUM(D19:J19) -> 332694.9 | D19: =D44+D101+D135+D167+D218+D254+D274+D186 -> 47981.8 | E19: =E44+E101+E135+E167+E218+E254+E274+E186 -> 46968.1 | F19: 47549 | G19: 47549 | H19: 47549 | I19: 47549 | J19: 47549
B20: областной бюджет | C20: =SUM(D20:J20) -> 1219.8 | D20: =SUM(D102+D273) -> 817.8 | E20: =SUM(E102+E273) -> 67 | F20: 67 | G20: 67 | H20: 67 | I20: 67 | J20: 67
B21: федеральный бюджет | C21: =SUM(D21:J21) -> 0 | D21: 0 | E21: =E102 -> 0 | F21: 0 | G21: 0 | H21: 0 | I21: 0 | J21: 0
A22: Подпрограмма 1: Комплексное благоустройство территории Североуральского городского округа
B23: Всего по подпрограмме 1, | C23: =SUM(C25+C26) -> 180180.1 | D23: =SUM(D25+D26) -> 23931.4 | E23: =SUM(E25) -> 22806.2 | F23: 26688.5 | G23: 26688.5 | H23: 26688.5 | I23: 26688.5 | J23: 26688.5
B24: в том числе:
B25: местный бюджет | C25: =SUM(D25:J25) -> 178670.1 | D25: =SUM(D29+D44) -> 22421.4 | E25: =SUM(E29+E44) -> 22806.2 | F25: 26688.5 | G25: 26688.5 | H25: 26688.5 | I25: 26688.5 | J25: 26688.5
B26: областной бюджет | C26: =SUM(D26:J26) -> 1510 | D26: =SUM(D30) -> 1510 | E26: =SUM(E30) -> 0 | F26: 0 | G26: 0 | H26: 0 | I26: 0 | J26: 0
A27: 1. Капитальные вложения
B28: Всего по направлению «Капитальные вложения» всего, в том числе | C28: =SUM(D28:J28) -> 37957.7 | D28: =SUM(D29+D30) -> 3710 | E28: =SUM(E29) -> 2120.2 | F28: 6425.5 | G28: 6425.5 | H28: 6425.5 | I28: 6425.5 | J28: 6425.5
B29: местный бюджет | C29: =SUM(D29:J29) -> 36447.7 | D29: =SUM(D40) -> 2200 | E29: =SUM(E40) -> 2120.2 | F29: 6425.5 | G29: 6425.5 | H29: 6425.5 | I29: 6425.5 | J29: 6425.5
B30: областной бюджет | C30: =SUM(D30:J30) -> 1510 | D30: =SUM(D37) -> 1510 | E30: =SUM(E37) -> 0 | F30: 0 | G30: 0 | H30: 0 | I30: 0 | J30: 0
A31: 1.1. Бюджетные инвестиции в объекты капитального строительства
B32: Бюджетные инвестиции в объекты капитального строительства всего, в том числе | C32: 0 | D32: 0 | E32: 0 | F32: 0 | G32: 0 | H32: 0 | I32: 0 | J32: 0
B33: местный бюджет | C33: 0 | D33: 0 | E33: 0 | F33: 0 | G33: 0 | H33: 0 | I33: 0 | J33: 0
A34: 1.2. Иные капитальные вложения
B35: Всего | C35: =SUM(D35:J35) -> 37957.7 | D35: =SUM(D36:D37) -> 3710 | E35: =SUM(E36:E37) -> 2120.2 | F35: 6425.5 | G35: 6425.5 | H35: 6425.5 | I35: 6425.5 | J35: 6425.5
B36: местный бюджет | C36: =SUM(D36:J36) -> 36447.7 | D36: =SUM(D40) -> 2200 | E36: =SUM(E40) -> 2120.2 | F36: 6425.5 | G36: 6425.5 | H36: 6425.5 | I36: 6425.5 | J36: 6425.5
B37: областной бюджет | C37: =SUM(D37:J37) -> 1510 | D37: =SUM(D41) -> 1510 | E37: =SUM(E41) -> 0 | F37: 0 | G37: 0 | H37: 0 | I37: 0 | J37: 0
A38: Мероприятие 1 Благоустройство дворовых территорий Североуральского городского округа
B39: Всего, из них | C39: =SUM(D39:J39) -> 37957.7 | D39: =D40+D41 -> 3710 | E39: =SUM(E40) -> 2120.2 | F39: 6425.5 | G39: 6425.5 | H39: 6425.5 | I39: 6425.5 | J39: 6425.5 | K39: 4
B40: местный бюджет | C40: =SUM(D40:J40) -> 36447.7 | D40: 2200 | E40: 2120.2 | F40: 6425.5 | G40: =SUM(F40) -> 6425.5 | H40: =SUM(G40) -> 6425.5 | I40: =SUM(H40) -> 6425.5 | J40: =SUM(I40) -> 6425.5
B41: областной бюджет | C41: =D41+E41+F41+G41+H41+I41+J41 -> 1510 | D41: 1510 | E41: 0 | F41: 0 | G41: 0 | H41: 0 | I41: 0 | J41: 0
A42: 3. Прочие нужды
B43: Всего по направлению «Прочие нужды», всего, в том числе: | C43: =SUM(D43:J43) -> 142222.4 | D43: =SUM(D44) -> 20221.4 | E43: =SUM(E44) -> 20686 | F43: 20263 | G43: 20263 | H43: 20263 | I43: 20263 | J43: 20263
B44: местный бюджет | C44: =SUM(D44:J44) -> 142222.4 | D44: =SUM(D47+D50+D53+D56) -> 20221.4 | E44: 20686 | F44: 20263 | G44: 20263 | H44: 20263 | I44: 20263 | J44: 20263
A45: Мероприятие 2 - Уличное освещение
B46: Всего, из них | C46: =SUM(D46:J46) -> 90499 | D46: =SUM(D47) -> 11900 | E46: 13000 | F46: 13119.8 | G46: 13119.8 | H46: 13119.8 | I46: 13119.8 | J46: 13119.8 | K46: 7
B47: местный бюджет | C47: =SUM(D47:J47) -> 90499 | D47: 11900 | E47: 13000 | F47: 13119.8 | G47: =SUM(F47) -> 13119.8 | H47: =SUM(G47) -> 13119.8 | I47: =SUM(H47) -> 13119.8 | J47: =SUM(I47) -> 13119.8
A48: Мероприятие 3 - Озеленение (цветники, валка сухих деревьев)
B49: Всего, из них | C49: =SUM(D49:J49) -> 15759 | D49: =SUM(D50) -> 2906.6 | E49: 2056.4 | F49: 2159.2 | G49: 2159.2 | H49: 2159.2 | I49: 2159.2 | J49: 2159.2 | K49: 9
B50: местный бюджет | C50: =SUM(D50:J50) -> 15759 | D50: 2906.6 | E50: 2056.4 | F50: 2159.2 | G50: =SUM(F50) -> 2159.2 | H50: =SUM(G50) -> 2159.2 | I50: =SUM(H50) -> 2159.2 | J50: =SUM(I50) -> 2159.2
A51: Мероприятие 4 - Организация и содержание мест захоронения
B52: Всего, из них | C52: =SUM(D52:J52) -> 15587.3 | D52: =SUM(D53) -> 1995 | E52: 2594.8 | F52: 2199.5 | G52: 2199.5 | H52: 2199.5 | I52: 2199.5 | J52: 2199.5 | K52: 14
B53: местный бюджет | C53: =SUM(D53:J53) -> 15587.3 | D53: 1995 | E53: 2594.8 | F53: 2199.5 | G53: =SUM(F53) -> 2199.5 | H53: =SUM(G53) -> 2199.5 | I53: =SUM(H53) -> 2199.5 | J53: =SUM(I53) -> 2199.5
A54: Мероприятие 5 - Прочие мероприятия по благоустройству
B55: Всего, в том числе: | C55: =SUM(D55:J55) -> 20377.1 | D55: =SUM(D56) -> 3419.8 | E55: 3034.8 | F55: =SUM(F56) -> 2784.5 | G55: 2784.5 | H55: 2784.5 | I55: 2784.5 | J55: 2784.5 | K55: 5,11,12,13,15
B56: местный бюджет | C56: =SUM(D56:J56) -> 20377.1 | D56: =SUM(D59+D62+D65+D68+D71+D74) -> 3419.8 | E56: 3034.8 | F56: 2784.5 | G56: =SUM(G59+G62+G65+G68+G71+G74) -> 2784.5 | H56: 2784.5 | I56: 2784.5 | J56: 2784.5
A57: - Содержание памятников
B58: Всего: | C58: =SUM(C59) -> 1522.5 | D58: 200 | E58: 220 | F58: 220.5 | G58: 220.5 | H58: 220.5 | I58: 220.5 | J58: 220.5 | K58: 15
B59: местный бюджет | C59: =SUM(D59:J59) -> 1522.5 | D59: 200 | E59: 220 | F59: 220.5 | G59: 220.5 | H59: =SUM(G59) -> 220.5 | I59: =SUM(H59) -> 220.5 | J59: =SUM(I59) -> 220.5
A60: - Проведение комплекса профилактических работ по уходу за объектами благоустройства
B61: Всего: | C61: =SUM(C62) -> 871.3 | D61: =SUM(D62) -> 674.3 | E61: =SUM(E62) -> 31.5 | F61: 33.1 | G61: 33.1 | H61: 33.1 | I61: 33.1 | J61: 33.1 | K61: 5
B62: местный бюджет | C62: =SUM(D62:J62) -> 871.3 | D62: 674.3 | E62: 31.5 | F62: 33.1 | G62: 33.1 | H62: =SUM(G62) -> 33.1 | I62: =SUM(H62) -> 33.1 | J62: =SUM(I62) -> 33.1
A63: - Регулирование численности безнадзорных животных
B64: Всего: | C64: =SUM(C65) -> 3781.5 | D64: =SUM(D65) -> 500 | E64: =SUM(E65) -> 525 | F64: 551.3 | G64: 551.3 | H64: 551.3 | I64: 551.3 | J64: 551.3 | K64: 11
B65: местный бюджет | C65: =SUM(D65:J65) -> 3781.5 | D65: 500 | E65: 525 | F65: 551.3 | G65: 551.3 | H65: =SUM(G65) -> 551.3 | I65: =SUM(H65) -> 551.3 | J65: =SUM(I65) -> 551.3
A66: - Содержание биоямы (скотомогильник)
B67: Всего: | C67: =SUM(C68) -> 589.9 | D67: =SUM(D68) -> 130.4 | E67: =SUM(E68) -> 73.5 | F67: 77.2 | G67: 77.2 | H67: 77.2 | I67: 77.2 | J67: 77.2 | K67: 13
B68: местный бюджет | C68: =SUM(D68:J68) -> 589.9 | D68: 130.4 | E68: 73.5 | F68: 77.2 | G68: 77.2 | H68: =SUM(G68) -> 77.2 | I68: =SUM(H68) -> 77.2 | J68: =SUM(I68) -> 77.2
A69: - Обустройство новогодних городков
B70: Всего: | C70: =SUM(C71) -> 13111.8 | D70: =SUM(D71) -> 1685.5 | E70: =SUM(E71) -> 2134.8 | F70: 1858.3 | G70: 1858.3 | H70: 1858.3 | I70: 1858.3 | J70: 1858.3 | K70: 5
B71: местный бюджет | C71: =SUM(D71:J71) -> 13111.8 | D71: 1685.5 | E71: 2134.8 | F71: 1858.3 | G71: 1858.3 | H71: =SUM(G71) -> 1858.3 | I71: =SUM(H71) -> 1858.3 | J71: =SUM(I71) -> 1858.3
A72: - Акарицидная обработка общественных мест
B73: Всего: | C73: =SUM(C74) -> 500.1 | D73: =SUM(D74) -> 229.6 | E73: =SUM(E74) -> 50 | F73: 44.1 | G73: 44.1 | H73: 44.1 | I73: 44.1 | J73: 44.1 | K73: 12
B74: местный бюджет | C74: =SUM(D74:J74) -> 500.1 | D74: 229.6 | E74: 50 | F74: 44.1 | G74: 44.1 | H74: =SUM(G74) -> 44.1 | I74: =SUM(H74) -> 44.1 | J74: =SUM(I74) -> 44.1
A75: Подпрограмма 2: Муниципальная программа по энергосбережению и повышению энергетической эффективности объектов Североуральского городского округа
B76: Всего по подпрограмме 2, в том числе | C76: =SUM(D76:J76) -> 36693.9 | D76: =SUM(D77:D79) -> 7547.4 | E76: =SUM(E77:E79) -> 6467.5 | F76: 4535.8 | G76: 4535.8 | H76: 4535.8 | I76: 4535.8 | J76: 4535.8
B77: местный бюджет | C77: =SUM(D77:J77) -> 33349.5 | D77: =SUM(D82+D101) -> 4203 | E77: =SUM(E82+E101) -> 6467.5 | F77: =F82+F101 -> 4535.8 | G77: =SUM(G82+G101) -> 4535.8 | H77: =SUM(H82+H101) -> 4535.8 | I77: =SUM(I82+I101) -> 4535.8 | J77: =SUM(J82+J101) -> 4535.8
B78: областной бюджет | C78: =SUM(D78:J78) -> 3344.4 | D78: =SUM(D83+D102) -> 3344.4 | E78: =SUM(E83+E102) -> 0 | F78: 0 | G78: 0 | H78: 0 | I78: 0 | J78: 0
B79: федеральный бюджет | C79: =SUM(D79:J79) -> 0 | D79: 0 | E79: =SUM(E84+E102) -> 0 | F79: 0 | G79: 0 | H79: 0 | I79: 0 | J79: 0
A80: 1. Капитальные вложения
B81: Всего по направлению «Капитальные вложения», всего, в том числе | C81: =SUM(C82:C84) -> 17187.4 | D81: =SUM(D82:D84) -> 3187.4 | E81: =SUM(E82:E84) -> 4000 | F81: 2000 | G81: 2000 | H81: 2000 | I81: 2000 | J81: 2000
B82: местный бюджет | C82: =SUM(D82:J82) -> 14431 | D82: 431 | E82: =SUM(E91) -> 4000 | F82: 2000 | G82: 2000 | H82: 2000 | I82: 2000 | J82: 2000
B83: областной бюджет | C83: =SUM(D83:J83) -> 2756.4 | D83: =SUM(D92) -> 2756.4 | E83: =SUM(E92) -> 0 | F83: 0 | G83: 0 | H83: 0 | I83: 0 | J83: 0
B84: федеральный бюджет | C84: =SUM(D84:J84) -> 0 | D84: =SUM(D93) -> 0 | E84: =SUM(E93) -> 0 | F84: 0 | G84: 0 | H84: 0 | I84: 0 | J84: 0
A85: 1.1. Бюджетные инвестиции в объекты капитального строительства
B86: Бюджетные инвестиции в объекты капитального строительства всего, в том числе | C86: 0 | D86: 0 | E86: 0 | F86: 0 | G86: 0 | H86: 0 | I86: 0 | J86: 0
B87: местный бюджет | C87: 0 | D87: 0 | E87: 0 | F87: 0 | G87: 0 | H87: 0 | I87: 0 | J87: 0
B88: областной бюджет
A89: 1.2. Иные капитальные вложения
B90: Всего, в том числе | C90: =SUM(C91:C93) -> 17187.4 | D90: =SUM(D91:D93) -> 3187.4 | E90: =SUM(E91:E93) -> 4000 | F90: 2000 | G90: 2000 | H90: 2000 | I90: 2000 | J90: 2000
B91: местный бюджет | C91: =SUM(D91:J91) -> 14431 | D91: =SUM(D96) -> 431 | E91: =SUM(E96) -> 4000 | F91: 2000 | G91: 2000 | H91: 2000 | I91: 2000 | J91: 2000
B92: областной бюджет | C92: =SUM(D92:J92) -> 2756.4 | D92: =SUM(D97) -> 2756.4 | E92: =SUM(E97) -> 0 | F92: 0 | G92: 0 | H92: 0 | I92: 0 | J92: 0
B93: федеральный бюджет | C93: =SUM(D93:J93) -> 0 | D93: =SUM(D98) -> 0 | E93: =SUM(E98) -> 0 | F93: 0 | G93: 0 | H93: 0 | I93: 0 | J93: 0
A94: Мероприятие 6- Реконструкция, модернизация водопроводных сетей, сетей системы водоотведения с заменой (без замены) оборудования с более высоким КПД, установка регулируемого привода, тепловых сетей с использованием энергетически эффективных технологий по тепловой изоляции, восстановление тепловой изоляции с применением эффективных технологий
B95: Всего, из них | C95: =SUM(C96:C98) -> 17187.4 | D95: =SUM(D96:D98) -> 3187.4 | E95: =SUM(E96:E98) -> 4000 | F95: 2000 | G95: 2000 | H95: 2000 | I95: 2000 | J95: 2000 | K95: 27
B96: местный бюджет | C96: =SUM(D96:J96) -> 14431 | D96: 431 | E96: 4000 | F96: 2000 | G96: =SUM(F96) -> 2000 | H96: 2000 | I96: 2000 | J96: 2000
B97: областной бюджет | C97: =SUM(D97:J97) -> 2756.4 | D97: 2756.4 | E97: 0 | F97: =SUM(E97*1.05) -> 0 | G97: 0 | H97: 0 | I97: 0 | J97: 0
B98: федеральный бюджет | C98: =SUM(D98:J98) -> 0 | D98: 0 | E98: 0 | F98: 0 | G98: =SUM(F98) -> 0 | H98: =SUM(G98) -> 0 | I98: =SUM(H98) -> 0 | J98: =SUM(I98) -> 0
A99: 3. Прочие нужды
B100: Всего по направлению «Прочие нужды», всего, в том числе: | C100: =SUM(D100:J100) -> 19506.5 | D100: =SUM(D101:D102) -> 4360 | E100: =SUM(E101:E102) -> 2467.5 | F100: 2535.8 | G100: 2535.8 | H100: 2535.8 | I100: 2535.8 | J100: 2535.8
B101: местный бюджет | C101: =SUM(D101:J101) -> 18918.5 | D101: =SUM(D105+D113+D117+D120) -> 3772 | E101: =SUM(E105+E113+E117+E120) -> 2467.5 | F101: 2535.8 | G101: 2535.8 | H101: 2535.8 | I101: 2535.8 | J101: 2535.8
B102: областной бюджет | C102: =SUM(D102:J102) -> 588 | D102: =SUM(D114) -> 588 | E102: =SUM(E114) -> 0 | F102: 0 | G102: 0 | H102: 0 | I102: 0 | J102: 0
A103: Мероприятие 7 - Оснащение зданий (строений, сооружений), находящихся в муниципальной собственности, многоквартирных жилых домов, жилых помещений, квартир приборами учета используемых энергетических ресурсов, в том числе разработка проектно-сметной документации
B104: всего, в том числе: | C104: =SUM(D104:J104) -> 3794 | D104: =SUM(D105:D106) -> 1200 | E104: 415 | F104: 435.8 | G104: 435.8 | H104: 435.8 | I104: 435.8 | J104: 435.8 | K104: 19,21,22,23,24
B105: местный бюджет | C105: =SUM(D105:J105) -> 3794 | D105: =SUM(D110) -> 1200 | E105: =SUM(E110) -> 415 | F105: 435.8 | G105: 435.8 | H105: 435.8 | I105: 435.8 | J105: 435.8
B106: областной бюджет | C106: =SUM(D106:J106) -> 0 | D106: =SUM(D107) -> 0 | E106: =SUM(E107) -> 0 | F106: 0 | G106: 0 | H106: 0 | I106: 0 | J106: 0
B107: федеральный бюджет | C107: =SUM(D107:J107) -> 0 | D107: 0 | E107: 0 | F107: 0 | G107: =SUM(F107) -> 0 | H107: =SUM(G107) -> 0 | I107: =SUM(H107) -> 0 | J107: =SUM(I107) -> 0
A108: - Оснащение жилых домов (субсидии)
B109: Всего: | C109: =SUM(C110) -> 3794 | D109: 1200 | E109: 415 | F109: 435.8 | G109: 435.8 | H109: 435.8 | I109: 435.8 | J109: 435.8
B110: местный бюджет | C110: =SUM(D110:J110) -> 3794 | D110: 1200 | E110: 415 | F110: 435.8 | G110: =SUM(F110) -> 435.8 | H110: =SUM(G110) -> 435.8 | I110: =SUM(H110) -> 435.8 | J110: =SUM(I110) -> 435.8
A111: Мероприятие 9 - Закупка и установка осветительного оборудования с заменой неэффективного на энергосберегающее, в том числе замена ламп накаливания на энергосберегающие, модернизация сетей уличного освещения, проектно-сметные работы, экспертиза проектно-сметной документации
B112: всего, из них: | C112: =SUM(C113:C114) -> 15230 | D112: =SUM(D113:D114) -> 2730 | E112: =SUM(E113:E114) -> 2000 | F112: 2100 | G112: 2100 | H112: 2100 | I112: 2100 | J112: 2100 | K112: 26
B113: местный бюджет | C113: =SUM(D113:J113) -> 14642 | D113: 2142 | E113: 2000 | F113: 2100 | G113: =SUM(F113) -> 2100 | H113: 2100 | I113: 2100 | J113: 2100
B114: областной бюджет | C114: =SUM(D114:J114) -> 588 | D114: 588 | E114: 0 | F114: 0 | G114: 0 | H114: 0 | I114: 0 | J114: 0
A115: Мероприятие 10 - Разработка схемы водоснабжения Североуральского городского округа
B116: всего, из них: | C116: =SUM(D116:J116) -> 380 | D116: =SUM(D117) -> 380 | E116: =SUM(E117) -> 0 | F116: 0 | G116: 0 | H116: 0 | I116: 0 | J116: 0 | K116: 28
B117: местный бюджет | C117: =SUM(D117:J117) -> 380 | D117: 380 | E117: 0 | F117: 0 | G117: =SUM(F117) -> 0 | H117: =SUM(G117) -> 0 | I117: =SUM(H117) -> 0 | J117: =SUM(I117) -> 0
A118: Мероприятие 11 - Прочие мероприятия (оформление актов выбора трассы под строительство водопроводов, сетей уличного освещения, газопроводов и т.п.)
B119: всего, из них: | C119: =SUM(D119:J119) -> 102.5 | D119: =SUM(D120) -> 50 | E119: =SUM(E120) -> 52.5 | F119: 0 | G119: 0 | H119: 0 | I119: 0 | J119: 0 | K119: 29
B120: местный бюджет | C120: =SUM(D120:J120) -> 102.5 | D120: 50 | E120: 52.5 | F120: 0 | G120: =SUM(F120) -> 0 | H120: =SUM(G120) -> 0 | I120: =SUM(H120) -> 0 | J120: =SUM(I120) -> 0
A121: Подпрограмма 3: Развитие лесного хозяйства на территории Североуральского городского округа
B122: Всего по подпрограмме 1, всего, в том числе | C122: =SUM(C123:C123) -> 2707 | D122: =SUM(D123) -> 1513 | E122: =SUM(E123) -> 191 | F122: 200.6 | G122: 200.6 | H122: 200.6 | I122: 200.6 | J122: 200.6
B123: местный бюджет | C123: =SUM(D123:J123) -> 2707 | D123: =SUM(D135) -> 1513 | E123: =SUM(E135) -> 191 | F123: 200.6 | G123: 200.6 | H123: 200.6 | I123: 200.6 | J123: 200.6
A124: 1. Капитальные вложения
B125: Всего по направлению «Капитальные вложения», всего, в том числе | C125: 0 | D125: 0 | E125: 0 | F125: 0 | G125: 0 | H125: 0 | I125: 0 | J125: 0
B126: местный бюджет | C126: 0 | D126: 0 | E126: 0 | F126: 0 | G126: 0 | H126: 0 | I126: 0 | J126: 0
A127: 1.1. Бюджетные инвестиции в объекты капитального строительства
B128: Бюджетные инвестиции в объекты капитального строительства всего, в том числе: | C128: =SUM(C129) -> 0 | D128: =SUM(D129) -> 0 | E128: 0 | F128: 0 | G128: 0 | H128: 0 | I128: 0 | J128: 0
B129: местный бюджет | C129: 0 | D129: 0 | E129: 0 | F129: 0 | G129: 0 | H129: 0 | I129: 0 | J129: 0
A130: 1.2. Иные капитальные вложения
B131: Всего, в том числе: | C131: =SUM(A133) -> 0 | D131: 0 | E131: 0 | F131: 0 | G131: 0 | H131: 0 | I131: 0 | J131: 0
B132: местный бюджет | C132: 0 | D132: 0 | E132: 0 | F132: 0 | G132: 0 | H132: 0 | I132: 0 | J132: 0
A133: 3. Прочие нужды
B134: Всего, из них | C134: =SUM(C135:C135) -> 2707 | D134: 1513 | E134: 191 | F134: 200.6 | G134: 200.6 | H134: 200.6 | I134: 200.6 | J134: 200.6
B135: местный бюджет | C135: =SUM(D135:J135) -> 2707 | D135: =SUM(D138) -> 1513 | E135: =SUM(E138) -> 191 | F135: 200.6 | G135: 200.6 | H135: 200.6 | I135: 200.6 | J135: 200.6
A136: Мероприятие 12 - Развитие лесного хозяйства на территории Североуральского городского округа
B137: Всего, в том числе: | C137: =SUM(D137:J137) -> 2707 | D137: =SUM(D138) -> 1513 | E137: =SUM(E138) -> 191 | F137: 200.6 | G137: 200.6 | H137: 200.6 | I137: 200.6 | J137: 200.6 | K137: 33
B138: местный бюджет | C138: =SUM(D138:J138) -> 2707 | D138: =SUM(D141) -> 1513 | E138: =SUM(E141) -> 191 | F138: 200.6 | G138: 200.6 | H138: 200.6 | I138: 200.6 | J138: 200.6
A139: - Межевание городских лесов, постановка на кадастровый учет
B140: Всего: | C140: =SUM(C141) -> 2707 | D140: =SUM(D141) -> 1513 | E140: =SUM(E141) -> 191 | F140: 200.6 | G140: 200.6 | H140: 200.6 | I140: 200.6 | J140: 200.6 | K140: 33
B141: местный бюджет | C141: =SUM(D141:J141) -> 2707 | D141: 1513 | E141: 191 | F141: 200.6 | G141: =SUM(F141) -> 200.6 | H141: =SUM(G141) -> 200.6 | I141: =SUM(H141) -> 200.6 | J141: =SUM(I141) -> 200.6
A142: Подпрограмма 4 : Переселение граждан на территории Североуральского городского округа из аварийного жилищного фонда с учетом необходимости развития малоэтажного жилищного строительства
B143: Всего по подпрограмме 4, всего, в том числе | C143: =SUM(C144:C146) -> 229468.65 | D143: =SUM(D144:D146) -> 88192.5 | E143: 33830.15 | F143: 0 | G143: 26861.5 | H143: 26861.5 | I143: 26861.5 | J143: 26861.5
B144: местный бюджет | C144: =SUM(D144:J144) -> 189851.15 | D144: =SUM(D149) -> 48575 | E144: =SUM(E149) -> 33830.15 | F144: 0 | G144: 26861.5 | H144: 26861.5 | I144: 26861.5 | J144: 26861.5
B145: областной бюджет | C145: =SUM(D145:J145) -> 13944.2 | D145: =SUM(D150) -> 13944.2 | E145: =SUM(E150) -> 0 | F145: 0 | G145: 0 | H145: 0 | I145: 0 | J145: 0
B146: федеральный бюджет | C146: =SUM(D146:J146) -> 25673.3 | D146: =SUM(D151) -> 25673.3 | E146: =SUM(E151) -> 0 | F146: 0 | G146: 0 | H146: 0 | I146: 0 | J146: 0
A147: 1. Капитальные вложения
B148: Всего по направлению «Капитальные вложения», всего, в том числе | C148: =SUM(C149:C151) -> 229468.65 | D148: =SUM(D149:D151) -> 88192.5 | E148: =SUM(E149:E151) -> 33830.15 | F148: 0 | G148: 26861.5 | H148: 26861.5 | I148: 26861.5 | J148: 26861.5
B149: местный бюджет | C149: =SUM(D149:J149) -> 189851.15 | D149: =SUM(D162) -> 48575 | E149: =SUM(E162) -> 33830.15 | F149: 0 | G149: 26861.5 | H149: 26861.5 | I149: 26861.5 | J149: 26861.5
B150: областной бюджет | C150: =SUM(D150:J150) -> 13944.2 | D150: =SUM(D163) -> 13944.2 | E150: =SUM(E163) -> 0 | F150: 0 | G150: 0 | H150: 0 | I150: 0 | J150: 0
B151: федеральный бюджет | C151: =SUM(D151:J151) -> 25673.3 | D151: =SUM(D164) -> 25673.3 | E151: =SUM(E164) -> 0 | F151: 0 | G151: 0 | H151: 0 | I151: 0 | J151: 0
A152: 1.1. Бюджетные инвестиции в объекты капитального строительства
B153: Бюджетные инвестиции в объекты капитального строительства всего, в том числе: | C153: =SUM(C154) -> 0 | D153: =SUM(D154) -> 0 | E153: 0 | F153: 0 | G153: 0 | H153: 0 | I153: 0 | J153: 0
B154: местный бюджет | C154: 0 | D154: 0 | E154: 0 | F154: 0 | G154: 0 | H154: 0 | I154: 0 | J154: 0
A155: 1.2. Иные капитальные вложения
B156: Всего, в том числе: | C156: =SUM(D156:J156) -> 229468.65 | D156: =SUM(D157:D159) -> 88192.5 | E156: =SUM(E157:E159) -> 33830.15 | F156: 0 | G156: 26861.5 | H156: 26861.5 | I156: 26861.5 | J156: 26861.5
B157: местный бюджет | C157: =SUM(D157:J157) -> 189851.15 | D157: =SUM(D162) -> 48575 | E157: =SUM(E162) -> 33830.15 | F157: 0 | G157: 26861.5 | H157: 26861.5 | I157: 26861.5 | J157: 26861.5
B158: областной бюджет | C158: =SUM(D158:J158) -> 13944.2 | D158: =SUM(D163) -> 13944.2 | E158: =SUM(E163) -> 0 | F158: 0 | G158: 0 | H158: 0 | I158: 0 | J158: 0
B159: федеральный бюджет | C159: =SUM(D159:J159) -> 25673.3 | D159: =SUM(D164) -> 25673.3 | E159: =SUM(E164) -> 0 | F159: 0 | G159: 0 | H159: 0 | I159: 0 | J159: 0
A160: Мероприятие 13 - Переселение граждан на территории Североуральского городского округа из аварийного жилищного фонда с учетом необходимости развития малоэтажного жилищного строительства
B161: Всего по направлению «Капитальные вложения», всего, в том числе | C161: =SUM(D161:J161) -> 229468.65 | D161: =SUM(D162:D164) -> 88192.5 | E161: =SUM(E162:E164) -> 33830.15 | F161: 0 | G161: 26861.5 | H161: 26861.5 | I161: 26861.5 | J161: 26861.5 | K161: 37, 39, 40
B162: местный бюджет | C162: =SUM(D162:J162) -> 189851.15 | D162: 48575 | E162: 33830.15 | F162: 0 | G162: 26861.5 | H162: 26861.5 | I162: 26861.5 | J162: 26861.5
B163: областной бюджет | C163: =SUM(D163:J163) -> 13944.2 | D163: 13944.2 | E163: 0 | F163: 0 | G163: 0 | H163: 0 | I163: 0 | J163: 0
B164: федеральный бюджет | C164: =SUM(D164:J164) -> 25673.3 | D164: 25673.3 | E164: 0 | F164: 0 | G164: 0 | H164: 0 | I164: 0 | J164: 0
A165: 3 Прочие нужды
B166: Всего, в том числе: | C166: 0 | D166: 0 | E166: 0 | F166: 0 | G166: 0 | H166: 0 | I166: 0 | J166: 0
B167: местный бюджет | C167: 0 | D167: 0 | E167: 0 | F167: 0 | G167: 0 | H167: 0 | I167: 0 | J167: 0
A168: Подпрограмма 5 : Содержание и капитальный ремонт общего имущества муниципального жилищного фонда на территории Североуральского городского округа
B169: Всего по подпрограмме 5, в том числе | C169: =C170+C171+C172 -> 62134.3 | D169: 5750.2 | E169: 9021.6 | F169: 9472.5 | G169: 9472.5 | H169: 9472.5 | I169: 9472.5 | J169: 9472.5
B170: областной бюджет | C170: =SUM(D170:J170) -> 0 | D170: =SUM(D184) -> 0 | E170: =SUM(E184) -> 0 | F170: 0 | G170: 0 | H170: 0 | I170: 0 | J170: 0
B171: федеральный бюджет | C171: =SUM(D171:J171) -> 0 | D171: =SUM(D185) -> 0 | E171: =SUM(E185) -> 0 | F171: 0 | G171: 0 | H171: 0 | I171: 0 | J171: 0
B172: местный бюджет | C172: =SUM(D172:J172) -> 62134.3 | D172: =SUM(D186) -> 5750.2 | E172: =SUM(E186) -> 9021.6 | F172: 9472.5 | G172: 9472.5 | H172: 9472.5 | I172: 9472.5 | J172: 9472.5
A173: 1. Капитальные вложения
B174: Всего по направлению «Капитальные вложения», всего, в том числе | C174: =SUM(C175) -> 0 | D174: =SUM(D175) -> 0 | E174: 0 | F174: 0 | G174: 0 | H174: 0 | I174: 0 | J174: 0
B175: местный бюджет | C175: 0 | D175: 0 | E175: 0 | F175: 0 | G175: 0 | H175: 0 | I175: 0 | J175: 0
A176: 1.1. Бюджетные инвестиции в объекты капитального строительства
B177: Бюджетные инвестиции в объекты капитального строительства всего, в том числе: | C177: =SUM(C178) -> 0 | D177: =SUM(D178) -> 0 | E177: 0 | F177: 0 | G177: 0 | H177: 0 | I177: 0 | J177: 0
B178: местный бюджет | C178: =SUM(D178:J178) -> 0 | D178: 0 | E178: 0 | F178: 0 | G178: 0 | H178: 0 | I178: 0 | J178: 0
A179: 1.2. Иные капитальные вложения
B180: Всего, в том числе: | C180: 0 | D180: =SUM(C178) -> 0 | E180: 0 | F180: 0 | G180: 0 | H180: 0 | I180: 0 | J180: 0
B181: местный бюджет | C181: =SUM(D181:J181) -> 0 | D181: 0 | E181: 0 | F181: 0 | G181: 0 | H181: 0 | I181: 0 | J181: 0
A182: 3 Прочие нужды
B183: Всего, в том числе: | C183: =SUM(C184:C186) -> 62134.3 | D183: =SUM(D184:D186) -> 5750.2 | E183: =SUM(E184:E186) -> 9021.6 | F183: 9472.5 | G183: 9472.5 | H183: 9472.5 | I183: 9472.5 | J183: 9472.5
B184: областной бюджет | C184: =SUM(D184:J184) -> 0 | D184: =SUM(D202) -> 0 | E184: =SUM(E202) -> 0 | F184: 0 | G184: 0 | H184: 0 | I184: 0 | J184: 0
B185: федеральный бюджет | C185: =SUM(D185:J185) -> 0 | D185: =SUM(D203) -> 0 | E185: =SUM(E203) -> 0 | F185: 0 | G185: 0 | H185: 0 | I185: 0 | J185: 0
B186: местный бюджет | C186: =SUM(D186:J186) -> 62134.3 | D186: =D189+D192+D195+D198+D201 -> 5750.2 | E186: 9021.6 | F186: 9472.5 | G186: 9472.5 | H186: 9472.5 | I186: 9472.5 | J186: 9472.5
A187: Мероприятие 14 - Ремонт общего имущества и квартир, в которых проживают отдельные категории граждан муниципального жилищного фонда в целях приведения в состояние, отвечающее требованиям пожарной безопасности, санитарно-техническим и иным требованиям
B188: Всего, из них | C188: =SUM(C189) -> 7662.5 | D188: =SUM(D189) -> 964.9 | E188: =SUM(E189) -> 1081.6 | F188: 1123.2 | G188: 1123.2 | H188: 1123.2 | I188: 1123.2 | J188: 1123.2 | K188: 44
B189: местный бюджет | C189: =SUM(D189:J189) -> 7662.5 | D189: 964.9 | E189: 1081.6 | F189: 1123.2 | G189: =SUM(F189) -> 1123.2 | H189: =SUM(G189) -> 1123.2 | I189: =SUM(H189) -> 1123.2 | J189: =SUM(I189) -> 1123.2
A190: Мероприятие 15 - Возмещение недополученных доходов организациям, предоставляющим населению жилищные услуги по тарифам, не обеспечивающим возмещение издержек, по содержанию лифтового хозяйства
B191: Всего, из них | C191: =SUM(D191:J191) -> 11813.9 | D191: =SUM(D192) -> 1969.9 | E191: =SUM(E192) -> 1575 | F191: 1653.8 | G191: 1653.8 | H191: 1653.8 | I191: 1653.8 | J191: 1653.8 | K191: 46
B192: местный бюджет | C192: =SUM(D192:J192) -> 11813.9 | D192: 1969.9 | E192: 1575 | F192: 1653.8 | G192: =SUM(F192) -> 1653.8 | H192: =SUM(G192) -> 1653.8 | I192: =SUM(H192) -> 1653.8 | J192: =SUM(I192) -> 1653.8
A193: Мероприятие 16 - Возмещение недополученных доходов организациям, предоставляющим населению жилищные услуги по тарифам, не обеспечивающим возмещение издержек, по содержанию муниципального жилищного фонда поселка Покровск-Уральский
B194: Всего, из них | C194: =SUM(D194:J194) -> 7562.5 | D194: =SUM(D195) -> 1000 | E194: =SUM(E195) -> 1050 | F194: 1102.5 | G194: 1102.5 | H194: 1102.5 | I194: 1102.5 | J194: 1102.5 | K194: 46
B195: местный бюджет | C195: =SUM(D195:J195) -> 7562.5 | D195: 1000 | E195: 1050 | F195: 1102.5 | G195: =SUM(F195) -> 1102.5 | H195: =SUM(G195) -> 1102.5 | I195: =SUM(H195) -> 1102.5 | J195: =SUM(I195) -> 1102.5
A196: Мероприятие 17- Предоставление субсидий на удешевление стоимости услуг по содержанию и ремонту муниципального специализированного жилищного фонда (общежитий)
B197: Всего, из них | C197: =SUM(C198) -> 9830 | D197: =SUM(D198) -> 1300 | E197: =SUM(E198) -> 1365 | F197: 1433 | G197: 1433 | H197: 1433 | I197: 1433 | J197: 1433 | K197: 46
B198: местный бюджет | C198: =SUM(D198:J198) -> 9830 | D198: 1300 | E198: 1365 | F198: 1433 | G198: =SUM(F198) -> 1433 | H198: =SUM(G198) -> 1433 | I198: =SUM(H198) -> 1433 | J198: =SUM(I198) -> 1433
A199: Мероприятие 18- Проведение капитального ремонта общего имущества многоквартирного фонда Североуральского городского округа, в том числе разработка проектно-сметной документации
B200: Всего, из них | C200: =SUM(C201:C203) -> 25265.4 | D200: =SUM(D201:D203) -> 515.4 | E200: =SUM(E201:E203) -> 3950 | F200: 4160 | G200: 4160 | H200: 4160 | I200: 4160 | J200: 4160 | K200: 45
B201: местный бюджет | C201: =SUM(D201:J201) -> 25265.4 | D201: 515.4 | E201: 3950 | F201: 4160 | G201: 4160 | H201: 4160 | I201: 4160 | J201: 4160
... 88 more rows

Sheet Лист2

Sheet Лист3
